bitfinex/quotes_SOLUSD_20251001
["timestamp","ask_amount","ask_price","bid_price","bid_amount"]
[1759313678425,16.23,216.32,216.27,4.62384981]
[1759313678631,16.23,216.32,216.27,16.18347435]
[1759313678925,16.23,216.32,216.27,4.62384981]
[1759313679406,16.91,216.32,216.27,4.62384981]
[1759313679608,16.91,216.32,216.27,16.18347435]
[1759313680026,16.23,216.32,216.27,16.18347435]
[1759313680223,0.68,216.31,216.27,16.18347435]
[1759313680817,0.68,216.3,216.27,16.18347435]
[1759313682232,16.23,216.32,216.27,4.62384981]
[1759313682434,0.68,216.3,216.27,4.62384981]
[1759313682732,16.23,216.28,216.24,4.72429559]
[1759313683034,16.23,216.29,216.25,33.3]
[1759313684013,16.23,216.29,216.26,4.62406362]
[1759313684230,16.91,216.29,216.26,4.62406362]
[1759313684436,0.68,216.28,216.26,4.62406362]
[1759313684736,16.23,216.29,216.26,4.62406362]
[1759313684945,16.91,216.29,216.26,4.62406362]
[1759313685250,16.23,216.29,216.26,4.62406362]
[1759313685410,0.68,216.28,216.26,4.62406362]
[1759313685819,16.23,216.29,216.26,16.18422268]
[1759313686223,0.68,216.28,216.26,4.62406362]
[1759313686521,0.68,216.28,216.25,33.3]
[1759313686522,0.68,216.27,216.25,37.9242541]
[1759313686722,0.68,216.3,216.25,37.9242541]
[1759313686932,16.23,216.31,216.25,49.48494774]
[1759313687146,0.68,216.29,216.25,49.48494774]
[1759313688651,0.68,216.28,216.24,0.1]
[1759313688946,0.68,216.28,216.26,33.24]
[1759313689237,16.23,216.29,216.26,33.24]
[1759313689442,0.68,216.27,216.26,33.24]
[1759313690419,16.91,216.27,216.26,33.24]
[1759313691250,16.23,216.27,216.26,33.24]
[1759313691837,16.23,216.29,216.26,37.863964]
[1759313692046,0.68,216.28,216.26,33.24]
[1759313692419,16.23,216.29,216.26,33.24]
[1759313692867,16.91,216.29,216.26,33.24]
[1759313693239,16.23,216.29,216.26,33.24]
[1759313693433,16.92,216.29,216.26,33.24]
[1759313693675,16.23,216.29,216.26,33.24]
[1759313693852,0.69,216.28,216.26,33.24]
[1759313694250,0.69,216.27,216.26,33.24]
[1759313694845,16.92,216.29,216.26,33.24]
[1759313695155,0.69,216.28,216.26,33.24]
[1759313695561,16.23,216.29,216.26,33.24]
[1759313695755,0.69,216.27,216.26,33.24]
[1759313696153,16.92,216.27,216.26,33.24]
[1759313697971,16.92,216.27,216.24,36.16]
[1759313698271,0.69,216.26,216.25,33.18]
[1759313699165,0.69,216.26,216.24,36.16]
[1759313699359,16.23,216.26,216.25,33.16]
[1759313699853,16.92,216.26,216.25,33.16]
[1759313700350,21.54406362,216.26,216.25,33.16]
[1759313702352,21.54406362,216.26,216.25,33.14]
[1759313702687,23.75132723,216.26,216.25,33.14]
[1759313702858,21.54406362,216.26,216.25,33.14]
[1759313703360,16.23,216.26,216.25,33.14]
[1759313705384,16.23,216.28,216.25,37.76427745]
[1759313705766,16.23,216.28,216.25,33.14]
[1759313707555,16.23,216.28,216.25,37.76423449]
[1759313707761,16.23,216.28,216.25,33.14]
[1759313708181,16.23,216.32,216.25,37.76427167]
[1759313709170,79.42,216.34,216.25,70.12496531]
[1759313709382,16.23,216.32,216.28,20.8]
[1759313709581,79.42,216.34,216.29,33.14]
[1759313709891,78.73,216.34,216.3,33.14]
[1759313710082,62.5,216.34,216.3,33.14]
[1759313710259,62.5,216.34,216.31,4.62299477]
[1759313710460,62.5,216.34,216.32,33.14]
[1759313712173,62.5,216.34,216.33,4.62256737]
[1759313717477,63.19,216.34,216.31,20.8]
[1759313717679,0.69,216.33,216.32,33.14]
[1759313723786,62.5,216.34,216.32,33.14]
[1759313724182,63.2,216.34,216.32,33.14]
[1759313724911,62.5,216.34,216.32,33.14]
[1759313725585,62.5,216.34,216.32,37.762731]
[1759313726986,62.5,216.34,216.32,33.14]
[1759313727293,0.7,216.33,216.32,33.14]
[1759313728101,62.5,216.34,216.32,33.14]
[1759313728613,63.2,216.34,216.32,33.14]
[1759313728995,62.5,216.34,216.32,33.14]
[1759313729185,63.2,216.34,216.32,33.14]
[1759313729725,62.5,216.34,216.32,37.7627707]
[1759313731599,0.7,216.46,216.36,24.57]
[1759313731807,0.7,216.46,216.4,20.8]
[1759313732010,0.7,216.46,216.41,33.12]
[1759313732820,33.12,216.68,216.41,33.12]
[1759313732821,16.23,216.5,216.42,4.62064504]
[1759313733116,0.7,216.48,216.43,33.12]
[1759313733317,0.7,216.48,216.44,36.04]
[1759313733900,0.7,216.48,216.45,4.62000462]
[1759313734101,0.7,216.48,216.46,33.12]
[1759313734304,16.23,216.52,216.46,33.12]
[1759313734632,0.7,216.51,216.46,33.12]
[1759313735619,0.7,216.51,216.49,20.8]
[1759313735926,0.7,216.53,216.5,33.12]
[1759313736123,0.7,216.52,216.5,37.73883939]
[1759313736427,16.93,216.54,216.5,37.73883939]
[1759313736717,0.7,216.53,216.5,37.73883939]
[1759313737515,0.7,216.52,216.5,33.12]
[1759313737715,0.7,216.51,216.5,33.12]
[1759313738722,16.23,216.54,216.5,33.12]
[1759313738914,0.7,216.53,216.5,33.12]
[1759313739228,0.7,216.52,216.5,33.12]
[1759313740533,0.7,216.52,216.5,37.73892417]
[1759313741027,16.23,216.54,216.5,37.73892417]
[1759313741223,0.7,216.57,216.5,37.73892417]
[1759313741405,0.7,216.57,216.5,49.28626828]
[1759313743630,4.61639601,216.62,216.5,49.28626828]
[1759313743631,0.7,216.6,216.53,20.8]
[1759313743926,0.7,216.6,216.54,33.1]
[1759313744331,0.7,216.6,216.55,4.61787116]
[1759313744508,0.7,216.6,216.56,33.1]
[1759313744707,16.93,216.62,216.56,33.1]
[1759313745033,16.23,216.67,216.59,20.8]
[1759313745206,0.7,216.64,216.6,33.1]
[1759313745411,0.7,216.63,216.6,33.1]
[1759313745949,0.7,216.62,216.6,33.1]
[1759313746522,0.7,216.62,216.6,37.71677075]
[1759313746740,16.93,216.65,216.6,33.1]
[1759313746907,0.7,216.64,216.6,33.1]
[1759313747103,0.7,216.63,216.6,33.1]
[1759313747734,0.7,216.63,216.6,37.71669486]
[1759313747926,16.23,216.65,216.6,37.71669486]
[1759313747927,16.93,216.65,216.6,37.71669486]
[1759313748129,0.7,216.64,216.6,37.71669486]
[1759313748533,0.7,216.63,216.6,33.1]
[1759313750031,16.93,216.65,216.6,37.71678669]
[1759313750234,16.23,216.65,216.6,37.71678669]
[1759313750435,16.93,216.65,216.6,37.71678669]
[1759313751438,0.7,216.64,216.6,37.71678669]
[1759313751731,16.23,216.65,216.6,37.71678669]
[1759313752240,17.13,216.69,216.6,49.25879961]
[1759313752537,0.7,216.68,216.63,20.8]
[1759313752753,0.7,216.67,216.64,69.08]
[1759313753649,0.2,216.69,216.64,69.08]
[1759313753650,16.43,216.69,216.64,69.08]
[1759313753952,17.13,216.69,216.64,69.08]
[1759313754115,0.7,216.68,216.64,73.69582798]
[1759313755136,0.2,216.69,216.64,40.61582798]
[1759313755428,0.9,216.69,216.65,33.08]
[1759313755607,0.2,216.69,216.65,33.08]
[1759313755805,0.9,216.69,216.65,33.08]
[1759313756009,0.2,216.69,216.65,37.69561421]
[1759313756234,0.2,216.69,216.68,20.8]
[1759313756435,0.2,216.69,216.68,53.86]
[1759313756935,0.9,216.69,216.68,53.86]
[1759313757236,0.2,216.69,216.68,53.86]
[1759313757935,0.2,216.69,216.67,20.8]
[1759313758234,0.2,216.69,216.68,33.06]
[1759313759237,0.2,216.69,216.67,25.41522948]
[1759313759427,0.2,216.69,216.68,33.06]
[1759313760536,0.2,216.69,216.68,37.6751006]
[1759313763624,0.2,216.69,216.65,11.53924539]
[1759313763927,0.2,216.69,216.68,20.8]
[1759313764115,0.2,216.69,216.68,58.4551006]
[1759313766921,1e-08,216.69,216.68,58.4551006]
[1759313767939,1e-08,216.69,216.68,72.05069461]
[1759313768158,1e-08,216.69,216.68,89.68069461]
[1759313772248,0.7,216.81,216.76,20.8]
[1759313772446,0.7,216.81,216.8,20.8]
[1759313772644,0.7,216.81,216.8,53.84]
[1759313773766,16.43,216.86,216.8,53.84]
[1759313773956,0.7,216.81,216.8,53.84]
[1759313774152,0.7,216.83,216.8,58.45254612]
[1759313774358,0.7,216.82,216.8,25.41254612]
[1759313774540,16.43,216.86,216.8,25.41254612]
[1759313774541,0.7,216.81,216.8,25.41254612]
[1759313774764,0.7,216.84,216.8,58.43254612]
[1759313775070,0.7,216.83,216.8,58.43254612]
[1759313775277,0.7,216.82,216.8,58.43254612]
[1759313775444,0.7,216.84,216.8,58.43254612]
[1759313775775,0.7,216.84,216.8,69.96391143]
[1759313776247,0.9,216.86,216.8,69.96391143]
[1759313776851,0.9,216.86,216.81,13.59559401]
[1759313777052,0.9,216.86,216.82,33.02]
[1759313777259,0.7,216.85,216.82,33.02]
[1759313778147,0.7,216.84,216.82,33.02]
[1759313778350,0.9,216.86,216.82,33.02]
[1759313778551,0.7,216.85,216.82,33.02]
[1759313778779,0.7,216.85,216.83,4.61190794]
[1759313778981,0.7,216.85,216.84,89.78]
[1759313779293,0.7,216.85,216.84,56.04]
[1759313779454,16.23,216.82,216.76,35.96]
[1759313779652,0.71,216.81,216.77,33.02]
[1759313779979,16.23,216.78,216.76,35.96]
[1759313780170,18.42977838,216.78,216.77,33.02]
[1759313780878,19.13977838,216.78,216.77,33.02]
[1759313781071,16.94,216.78,216.77,33.02]
[1759313782680,19.13977838,216.78,216.76,35.96]
[1759313782881,18.42977838,216.78,216.77,33.0]
[1759313783487,19.10977838,216.78,216.77,33.0]
[1759313783684,16.91,216.78,216.77,33.0]
[1759313784260,23.72275005,216.78,216.76,35.96]
[1759313784491,2.87977838,216.77,216.76,35.96]
[1759313784802,2.87977838,216.77,216.76,68.96]
[1759313784958,7.49296286,216.77,216.76,68.96]
[1759313786681,0.68,216.77,216.76,68.96]
[1759313791990,16.23,216.78,216.76,68.96]
[1759313792195,16.91,216.81,216.76,73.57334968]
[1759313792365,16.91,216.81,216.76,74.23334968]
[1759313793265,16.23,216.83,216.79,20.8]
[1759313793467,0.2,216.86,216.8,33.66]
[1759313794581,0.2,216.86,216.81,4.61233337]
[1759313794788,0.2,216.86,216.82,33.0]
[1759313794964,0.88,216.86,216.82,33.0]
[1759313795577,0.88,216.86,216.83,4.61190794]
[1759313795897,0.88,216.86,216.84,33.0]
[1759313796082,0.2,216.86,216.84,33.0]
[1759313796282,16.43,216.86,216.84,33.0]
[1759313796472,0.2,216.86,216.84,33.0]
[1759313797467,0.2,216.86,216.84,37.61162555]
[1759313798392,0.2,216.86,216.85,0.66]
[1759313800297,0.2,216.86,216.85,4.61148259]
[1759313800786,0.2,216.86,216.85,26.07148259]
[1759313805589,0.2,216.91,216.89,20.8]
[1759313805793,0.2,216.91,216.9,32.98]
[1759313806495,0.2,216.91,216.9,37.59041954]
[1759313813911,0.86,216.91,216.9,20.8]
[1759313814204,0.86,216.91,216.9,25.41041954]
[1759313814382,0.2,216.91,216.9,25.41041954]
[1759313815086,0.2,216.91,216.9,58.37041954]
[1759313818510,0.2,216.91,216.9,94.31041954]
[1759313819596,0.2,216.91,216.9,94.99041954]
[1759313822903,0.2,216.91,216.9,108.58601355]
[1759313823311,0.66,216.99,216.9,143.16416016]
[1759313823616,0.66,216.98,216.91,0.68]
[1759313823791,0.66,216.98,216.95,20.8]
[1759313823998,17.09,217.01,216.96,32.94]
[1759313824199,17.09,217.01,216.96,33.62]
[1759313824493,0.66,217.0,216.96,32.94]
[1759313824809,16.43,217.01,216.96,33.62]
[1759313825014,17.09,217.01,216.96,33.62]
[1759313825318,16.43,217.01,216.96,32.94]
[1759313825518,0.66,217.0,216.96,32.94]
[1759313825833,16.43,217.01,216.97,25.40893211]
[1759313826012,0.66,216.99,216.97,58.34893211]
[1759313826195,17.09,217.01,216.97,58.34893211]
[1759313826392,0.66,217.0,216.97,58.34893211]
[1759313826905,0.66,217.0,216.97,25.40893211]
[1759313827105,0.66,216.99,216.98,32.92]
[1759313827315,17.09,217.01,216.98,32.92]
[1759313827498,0.66,217.0,216.98,32.92]
[1759313827694,17.09,217.01,216.99,4.6085073]
[1759313827896,0.2,217.01,217.0,32.92]
[1759313828321,0.86,217.01,217.0,32.92]
[1759313829716,0.2,217.01,217.0,37.52829493]
[1759313830413,0.2,217.01,217.0,32.92]
[1759313830599,0.86,217.01,217.0,37.52829493]
[1759313831219,0.86,217.01,217.0,32.92]
[1759313832233,0.86,217.01,216.98,20.8]
[1759313832526,17.63484976,216.99,216.91,4.61020699]
[1759313832706,0.66,216.98,216.95,20.8]
[1759313833032,0.66,216.97,216.96,32.92]
[1759313833398,0.66,216.97,216.91,4.61020699]
[1759313833399,18.29484976,216.97,216.91,4.61020699]
[1759313833599,0.66,216.96,216.92,32.92]
[1759313833833,0.66,216.95,216.92,32.92]
[1759313834004,0.66,216.94,216.93,20.8]
[1759313834203,0.66,216.94,216.93,32.92]
[1759313835398,16.23,216.92,216.9,35.94]
[1759313835742,0.66,216.91,216.9,35.94]
[1759313836041,0.66,216.91,216.9,68.86]
[1759313837505,2.06484976,216.91,216.9,35.94]
[1759313837710,6.67505675,216.91,216.9,68.86]
[1759313838425,20.27065076,216.91,216.9,68.86]
[1759313839213,18.865801,216.91,216.9,68.86]
[1759313839748,16.23,216.81,216.79,35.94]
[1759313839910,16.23,216.81,216.8,32.92]
[1759313840430,16.94,216.81,216.8,32.92]
[1759313840805,22.95718313,216.81,216.8,32.92]
[1759313841522,18.34484976,216.81,216.8,32.92]
[1759313841730,22.95718313,216.81,216.8,32.92]
[1759313843535,31.94044377,216.81,216.8,32.92]
[1759313843921,36.55277714,216.81,216.8,32.92]
[1759313844130,16.23,216.81,216.8,32.92]
[1759313844334,16.23,216.83,216.8,33.63]
[1759313844633,16.23,216.83,216.81,0.71]
[1759313844833,16.23,216.83,216.82,32.92]
[1759313845413,16.23,216.85,216.82,32.92]
[1759313845819,16.23,216.83,216.82,32.92]
[1759313847313,16.23,216.81,216.79,35.94]
[1759313847516,16.23,216.81,216.8,32.92]
[1759313850533,16.23,216.81,216.8,37.53254612]
[1759313850717,16.23,216.81,216.8,32.92]
[1759313851607,16.23,216.81,216.8,37.53254612]
[1759313852039,16.23,216.83,216.8,37.53254612]
[1759313852241,16.23,216.81,216.8,32.92]
[1759313852535,16.23,216.81,216.79,35.94]
[1759313852833,16.23,216.81,216.8,32.92]
[1759313853424,16.89,216.81,216.8,32.92]
[1759313855224,21.50233337,216.81,216.8,32.92]
[1759313855429,22.90718313,216.81,216.8,32.92]
[1759313857941,16.89,216.81,216.8,32.92]
[1759313858431,16.23,216.81,216.8,32.92]
[1759313860536,16.89,216.81,216.8,32.92]
[1759313861225,16.23,216.81,216.8,32.92]
[1759313862534,16.89,216.81,216.79,35.94]
[1759313862718,16.89,216.81,216.8,32.92]
[1759313863836,16.89,216.81,216.75,56.76]
[1759313865039,16.89,216.81,216.76,37.53335322]
[1759313865246,16.23,216.79,216.76,37.53335322]
[1759313870028,16.23,216.81,216.77,0.02]
[1759313870229,16.23,216.83,216.78,32.9]
[1759313870534,16.23,216.83,216.78,32.92]
[1759313871026,16.23,216.83,216.78,32.9]
[1759313871644,16.89,216.83,216.78,32.9]
[1759313872746,16.89,216.83,216.79,4.61275889]
[1759313872934,16.89,216.83,216.8,32.9]
[1759313873130,16.23,216.83,216.8,32.9]
[1759313873324,0.66,216.82,216.8,32.9]
[1759313873522,16.93,216.83,216.8,32.9]
[1759313874025,16.23,216.83,216.8,32.9]
[1759313874424,16.93,216.83,216.8,32.9]
[1759313874651,0.7,216.82,216.8,32.9]
[1759313874961,16.23,216.83,216.8,32.9]
[1759313875141,0.7,216.82,216.8,32.9]
[1759313875459,16.23,216.77,216.75,35.96]
[1759313875761,16.23,216.77,216.76,32.9]
[1759313876126,16.93,216.77,216.76,32.9]
[1759313877841,16.23,216.77,216.76,32.9]
[1759313878043,16.23,216.77,216.76,37.5133973]
[1759313878344,16.23,216.79,216.76,37.5133973]
[1759313879153,16.93,216.81,216.78,20.8]
[1759313879458,16.23,216.81,216.79,32.9]
[1759313879659,16.93,216.81,216.79,32.9]
[1759313880155,16.23,216.81,216.79,32.9]
[1759313880666,16.93,216.81,216.79,32.9]
[1759313881458,16.93,216.81,216.79,37.51274961]
[1759313881459,16.23,216.81,216.79,37.51274961]
[1759313882156,16.23,216.84,216.79,37.51274961]
[1759313882361,16.93,216.84,216.79,37.51274961]
[1759313882661,16.23,216.84,216.79,37.51274961]
[1759313882839,0.7,216.83,216.79,37.51274961]
[1759313883042,16.23,216.81,216.79,37.51274961]
[1759313883456,16.23,216.81,216.8,35.96]
[1759313883670,16.93,216.83,216.8,35.96]
[1759313883854,16.93,216.83,216.81,32.9]
[1759313884741,16.23,216.86,216.81,32.92]
[1759313884963,16.23,216.88,216.83,4.61190794]
[1759313885267,16.23,216.88,216.84,32.9]
[1759313885469,16.23,216.88,216.84,53.7]
[1759313885953,16.23,216.9,216.84,53.7]
[1759313886150,16.23,216.9,216.87,20.8]
[1759313886354,16.23,216.92,216.88,32.9]
[1759313886560,16.23,216.92,216.89,3.84251613]
[1759313886865,16.23,216.95,216.91,4.61020699]
[1759313887182,16.23,216.95,216.92,32.88]
[1759313887183,16.93,216.95,216.92,32.88]
[1759313887864,16.23,216.95,216.92,32.88]
[1759313888170,16.23,216.95,216.92,37.48994622]
[1759313888362,16.23,216.97,216.92,37.48994622]
[1759313888562,16.93,216.97,216.92,37.48994622]
[1759313889364,16.93,216.97,216.92,41.08642578]
[1759313889956,16.23,216.97,216.93,0.02]
[1759313890149,16.23,216.97,216.94,32.88]
[1759313890874,16.23,217.0,216.96,20.8]
[1759313891172,16.93,217.0,216.97,32.88]
[1759313892559,16.93,217.0,216.97,37.48887871]
[1759313893077,16.23,216.98,216.97,32.88]
[1759313894249,16.93,216.98,216.95,20.8]
[1759313894449,0.7,216.97,216.96,32.86]
[1759313894970,16.23,216.94,216.87,13.90511149]
[1759313895176,0.7,216.93,216.88,32.86]
[1759313895346,0.7,216.92,216.91,20.8]
[1759313895546,0.7,216.92,216.91,53.66]
[1759313897151,16.23,216.94,216.91,53.66]
[1759313897556,16.93,216.94,216.91,53.66]
[1759313898065,0.7,216.93,216.91,53.66]
[1759313898578,16.23,216.94,216.91,53.66]
[1759313898793,0.7,216.93,216.91,53.66]
[1759313899392,0.68,216.93,216.91,53.66]
[1759313899560,16.23,216.94,216.91,53.66]
[1759313899763,16.23,216.94,216.91,58.27019698]
[1759313902865,16.23,216.94,216.91,58.27017441]
[1759313903968,16.95,216.94,216.91,58.27017441]
[1759313906182,16.23,216.94,216.91,58.27017441]
[1759313906557,16.23,216.96,216.91,58.27017441]
[1759313906761,16.23,216.96,216.92,0.02]
[1759313906987,16.23,216.96,216.93,32.84]
[1759313907783,16.23,216.98,216.94,4.60956946]
[1759313908079,16.23,216.98,216.95,32.84]
[1759313908283,16.95,216.98,216.95,32.84]
[1759313908874,16.95,216.98,216.95,37.44928526]
[1759313909472,16.95,216.98,216.95,32.84]
[1759313909767,16.23,216.96,216.95,32.84]
[1759313911775,16.23,216.96,216.95,37.44935699]
[1759313911962,16.95,216.98,216.95,32.84]
[1759313912289,0.72,216.97,216.95,32.84]
[1759313912475,16.23,216.96,216.95,32.84]
[1759313912673,0.72,216.97,216.95,32.84]
[1759313912976,16.23,216.96,216.95,32.84]
[1759313913175,16.23,216.96,216.91,20.8]
[1759313913176,16.23,216.95,216.93,20.8]
[1759313913379,0.72,216.94,216.92,20.8]
[1759313913585,4.60926273,216.96,216.92,20.8]
[1759313913586,16.95,216.93,216.92,20.8]
[1759313913883,16.95,216.93,216.92,53.64]
[1759313916788,16.95,216.93,216.92,32.84]
[1759313916987,23.75546191,216.93,216.92,32.84]
[1759313918671,23.75546191,216.93,216.81,0.02]
[1759313918672,16.23,216.86,216.8,0.02]
[1759313918899,16.23,216.86,216.81,32.82]
[1759313919187,16.23,216.86,216.84,20.8]
[1759313919391,16.23,216.86,216.85,32.82]
[1759313921294,16.95,216.86,216.85,32.82]
[1759313925174,23.7569499,216.86,216.85,32.82]
[1759313931101,37.35254391,216.86,216.85,32.82]
[1759313935309,35.15686395,216.86,216.85,32.82]
[1759313935507,37.35254391,216.86,216.85,32.82]
[1759313935702,16.23,216.81,216.8,35.94]
[1759313935907,19.09567996,216.81,216.8,35.94]
[1759313936886,19.09567996,216.81,216.8,68.76]
[1759313937283,23.70801333,216.81,216.8,68.76]
[1759313937809,21.51233337,216.81,216.8,68.76]
[1759313937995,20.84233337,216.81,216.8,68.76]
[1759313938490,16.23,216.81,216.8,68.76]
[1759313942323,27.72033464,216.89,216.8,68.76]
[1759313942324,16.21,216.92,216.83,20.8]
[1759313942494,16.21,216.87,216.86,20.8]
[1759313942810,16.21,216.87,216.86,53.62]
[1759313943517,16.21,216.89,216.86,53.62]
[1759313943688,16.21,216.87,216.86,53.62]
[1759313943889,16.21,216.87,216.86,58.23126994]
[1759313944493,16.21,216.87,216.86,32.82]
[1759313944688,16.21,216.87,216.83,20.8]
[1759313944908,16.21,216.87,216.84,32.82]
[1759313945592,16.21,216.85,216.84,37.43169022]
[1759313949129,16.21,216.91,216.86,20.8]
[1759313949329,16.21,216.91,216.87,53.62]
[1759313949532,16.21,216.93,216.91,20.8]
[1759313949827,16.21,216.95,216.94,20.8]
[1759313949997,16.21,216.95,216.94,53.6]
[1759313951592,16.88,216.95,216.94,32.8]
[1759313952138,16.88,216.95,216.84,11.52890612]
[1759313952139,16.21,216.92,216.84,11.52890612]
[1759313952316,4.6090033,216.97,216.84,4.61169525]
[1759313952317,16.21,216.89,216.84,4.61169525]
[1759313952630,16.88,216.89,216.85,32.8]
[1759313952826,16.88,216.89,216.88,20.8]
[1759313953029,16.88,216.89,216.88,53.6]
[1759313953326,16.21,216.89,216.88,53.6]
[1759313953913,11.52185595,216.98,216.88,58.2108447]
[1759313953914,16.21,216.91,216.88,58.2108447]
[1759313954425,16.21,216.89,216.88,58.2108447]
[1759313956047,0.67,216.93,216.88,58.2108447]
[1759313956048,16.21,216.93,216.88,58.2108447]
[1759313957336,16.21,216.93,216.88,69.73795646]
[1759313958125,16.21,216.95,216.88,83.44104065]
[1759313959216,16.21,216.95,216.88,87.28355678]
[1759313960317,16.21,216.95,216.93,20.8]
[1759313960510,16.21,216.95,216.94,32.8]
[1759313962715,16.21,216.95,216.94,37.40956946]
[1759313963615,16.21,216.98,216.94,37.40956946]
[1759313964239,16.21,216.98,216.94,48.93349312]
[1759313964616,16.21,217.0,216.97,20.8]
[1759313964941,16.86,217.0,216.98,32.78]
[1759313965529,0.65,216.99,216.94,20.8]
[1759313965835,0.65,216.98,216.97,20.8]
[1759313966029,0.65,216.98,216.97,53.58]
[1759313966243,16.86,216.98,216.97,53.58]
[1759313966429,16.21,216.96,216.92,20.8]
[1759313966626,16.21,216.94,216.9,4.61020772]
[1759313966937,0.65,216.93,216.91,53.58]
[1759313967729,0.65,216.93,216.92,35.94]
[1759313968632,16.21,216.96,216.92,35.94]
[1759313968834,16.21,216.96,216.93,37.38978195]
[1759313969737,16.21,216.96,216.95,20.8]
[1759313969948,16.21,216.96,216.95,53.58]
[1759313972129,16.21,216.96,216.95,58.18935699]
[1759313973434,16.21,216.98,216.95,69.71274947]
[1759313974251,16.21,217.0,216.95,69.71274947]
[1759313974454,16.86,217.0,216.95,69.71274947]
[1759313975450,0.65,216.99,216.95,69.71274947]
[1759313975635,0.65,216.99,216.95,20.8]
[1759313975949,16.21,217.0,216.99,20.8]
[1759313976141,16.21,217.0,216.99,53.56]
[1759313976344,16.86,217.0,216.99,53.56]
[1759313976542,16.86,217.0,216.99,32.76]
[1759313976748,16.21,217.0,216.99,32.76]
[1759313977173,16.86,217.0,216.99,32.76]
[1759313980268,16.86,217.0,216.97,20.8]
[1759313980438,0.65,216.99,216.98,32.76]
[1759313980643,16.21,216.97,216.95,20.8]
[1759313980859,16.21,216.95,216.92,35.94]
[1759313981164,16.21,216.97,216.96,20.8]
[1759313981378,16.21,216.97,216.96,58.16914454]
[1759313982262,16.21,216.99,216.96,58.16914454]
[1759313982649,0.65,216.98,216.96,58.16914454]
[1759313982844,16.21,216.99,216.96,58.16914454]
[1759313983152,0.65,216.98,216.96,58.16914454]
[1759313983736,16.21,216.99,216.96,58.16914454]
[1759313984038,16.86,216.99,216.96,58.16914454]
[1759313985052,16.86,216.99,216.98,20.8]
[1759313985241,16.86,216.99,216.97,32.76]
[1759313986546,0.65,216.98,216.97,32.76]
[1759313987947,16.21,216.99,216.97,37.36885234]
[1759313991642,16.21,216.99,216.98,35.94]
[1759313992356,16.86,216.99,216.98,35.94]
[1759313993149,16.86,216.99,216.98,40.54871969]
[1759313996044,16.86,216.99,216.98,35.94]